[Event "Senior Men Russian Championship 2022_HL"]
[Site "Saint-Petersburg, Russia"]
[Date "2022.09.30"]
[Round "7.10"]
[White "Kornilov, Anatoly"]
[Black "Nikitinyh, Boris"]
[Result "1-0"]
[TimeControl "40+30"]
[WhiteElo "2094"]
[BlackElo "1853"]

1. d4 {[%clk 01:30:53]} {[%emt 00:00:05]} Nf6 {[%clk 01:30:46]} {[%emt
00:00:15]} 2. c4 {[%clk 01:31:16]} {[%emt 00:00:07]} e6 {[%clk 01:31:03]}
{[%emt 00:00:13]} 3. Nc3 {[%clk 01:31:29]} {[%emt 00:00:17]} d5 {[%clk
01:31:03]} {[%emt 00:00:30]} 4. cxd5 {[%clk 01:31:49]} {[%emt 00:00:10]} exd5
{[%clk 01:31:23]} {[%emt 00:00:10]} 5. Bg5 {[%clk 01:32:14]} {[%emt 00:00:04]}
Be7 {[%clk 01:31:14]} {[%emt 00:00:39]} 6. e3 {[%clk 01:32:37]} {[%emt
00:00:08]} O-O {[%clk 01:31:15]} {[%emt 00:00:29]} 7. Bd3 {[%clk 01:32:57]}
{[%emt 00:00:09]} Nbd7 {[%clk 01:30:15]} {[%emt 00:01:30]} 8. Nf3 {[%clk
01:32:55]} {[%emt 00:00:33]} Re8 {[%clk 01:30:15]} {[%emt 00:00:30]} 9. Qc2
{[%clk 01:33:00]} {[%emt 00:00:25]} Nf8 {[%clk 01:29:37]} {[%emt 00:01:07]} 10.
O-O {[%clk 01:32:59]} {[%emt 00:00:32]} c6 {[%clk 01:27:52]} {[%emt 00:02:15]}
11. Rab1 {[%clk 01:33:14]} {[%emt 00:00:14]} N6d7 {[%clk 01:18:57]} {[%emt
00:09:25]} 12. Bxe7 {[%clk 01:30:42]} {[%emt 00:03:02]} Qxe7 {[%clk 01:19:01]}
{[%emt 00:00:27]} 13. b4 {[%clk 01:30:52]} {[%emt 00:00:19]} a6 {[%clk
01:14:47]} {[%emt 00:04:46]} 14. a4 {[%clk 01:31:07]} {[%emt 00:00:14]} Nf6
{[%clk 01:12:27]} {[%emt 00:02:50]} 15. b5 {[%clk 01:30:08]} {[%emt 00:01:29]}
axb5 {[%clk 01:09:48]} {[%emt 00:03:09]} 16. axb5 {[%clk 01:30:33]} {[%emt
00:00:05]} Bd7 {[%clk 01:06:19]} {[%emt 00:03:59]} 17. bxc6 {[%clk 01:28:29]}
{[%emt 00:02:34]} bxc6 {[%clk 01:05:57]} {[%emt 00:00:52]} 18. Na4 {[%clk
01:27:45]} {[%emt 00:01:14]} Ra7 {[%clk 01:01:55]} {[%emt 00:04:32]} 19. Nc5
{[%clk 01:27:36]} {[%emt 00:00:39]} Rea8 {[%clk 01:00:24]} {[%emt 00:02:01]} 20.
Nxd7 {[%clk 01:24:33]} {[%emt 00:03:32]} Rxd7 {[%clk 00:56:43]} {[%emt
00:04:12]} 21. Qxc6 {[%clk 01:23:57]} {[%emt 00:01:05]} Rad8 {[%clk 00:56:42]}
{[%emt 00:00:32]} 22. Ne5 {[%clk 01:21:47]} {[%emt 00:02:40]} Rd6 {[%clk
00:54:11]} {[%emt 00:03:01]} 23. Qb7 {[%clk 01:21:55]} {[%emt 00:00:20]} Qe6
{[%clk 00:51:32]} {[%emt 00:03:10]} 24. f4 {[%clk 01:21:37]} {[%emt 00:00:48]}
N6d7 {[%clk 00:50:37]} {[%emt 00:01:25]} 25. Rf3 {[%clk 01:16:50]} {[%emt
00:05:17]} Rb8 {[%clk 00:43:56]} {[%emt 00:07:11]} 26. Qc7 {[%clk 01:12:02]}
{[%emt 00:05:18]} Rxb1+ {[%clk 00:40:59]} {[%emt 00:03:28]} 27. Bxb1 {[%clk
01:12:28]} {[%emt 00:00:04]} Nxe5 {[%clk 00:38:41]} {[%emt 00:02:48]} 28. dxe5
{[%clk 01:12:10]} {[%emt 00:00:48]} Rc6 {[%clk 00:38:22]} {[%emt 00:00:49]} 29.
Qa7 {[%clk 01:12:28]} {[%emt 00:00:11]} Rc1+ {[%clk 00:33:12]} {[%emt
00:05:40]} 30. Rf1 {[%clk 01:12:52]} {[%emt 00:00:06]} Rxf1+ {[%clk 00:23:50]}
{[%emt 00:09:52]} 31. Kxf1 {[%clk 01:13:17]} {[%emt 00:00:04]} Qc8 {[%clk
00:19:35]} {[%emt 00:04:45]} 32. Qa3 {[%clk 01:08:36]} {[%emt 00:05:11]} Ne6
{[%clk 00:16:39]} {[%emt 00:03:25]} 33. Qd3 {[%clk 01:03:34]} {[%emt 00:05:33]}
g6 {[%clk 00:14:39]} {[%emt 00:02:31]} 34. Qc2 {[%clk 01:00:51]} {[%emt
00:03:12]} Qd7 {[%clk 00:11:47]} {[%emt 00:03:23]} 35. Ba2 {[%clk 01:00:48]}
{[%emt 00:00:32]} Kg7 {[%clk 00:01:56]} {[%emt 00:10:21]} 36. Qd3 {[%clk
00:59:42]} {[%emt 00:01:36]} 1-0

[Event "Senior Men Russian Championship 2022_HL"]
[Site "Saint-Petersburg, Russia"]
[Date "2022.09.30"]
[Round "7.11"]
[White "Yakovlev, Yuri S."]
[Black "Kasantsev, Anatolij B."]
[Result "1/2-1/2"]
[TimeControl "40+30"]
[WhiteElo "1649"]
[BlackElo "1908"]

1. e4 {[%clk 01:30:58]} c5 {[%clk 01:30:47]} {[%emt 00:00:14]} 2. Nf3 {[%clk
01:31:25]} {[%emt 00:00:02]} e6 {[%clk 01:31:05]} {[%emt 00:00:12]} 3. c4
{[%clk 01:31:46]} {[%emt 00:00:09]} Nc6 {[%clk 01:31:23]} {[%emt 00:00:13]} 4.
d4 {[%clk 01:32:07]} {[%emt 00:00:08]} cxd4 {[%clk 01:31:42]} {[%emt 00:00:11]}
5. Nxd4 {[%clk 01:32:35]} {[%emt 00:00:03]} Nf6 {[%clk 01:31:57]} {[%emt
00:00:14]} 6. Nc3 {[%clk 01:32:42]} {[%emt 00:00:22]} Bb4 {[%clk 01:32:17]}
{[%emt 00:00:11]} 7. Nxc6 {[%clk 01:30:45]} {[%emt 00:02:27]} bxc6 {[%clk
01:32:15]} {[%emt 00:00:33]} 8. Bd3 {[%clk 01:30:25]} {[%emt 00:00:49]} Qc7
{[%clk 01:30:17]} {[%emt 00:02:28]} 9. O-O {[%clk 01:30:12]} {[%emt 00:00:44]}
O-O {[%clk 01:30:34]} {[%emt 00:00:12]} 10. Bd2 {[%clk 01:28:59]} {[%emt
00:01:43]} Be7 {[%clk 01:25:07]} {[%emt 00:05:58]} 11. Rc1 {[%clk 01:27:27]}
{[%emt 00:02:01]} d6 {[%clk 01:24:50]} {[%emt 00:00:47]} 12. Be3 {[%clk
01:23:37]} {[%emt 00:04:19]} c5 {[%clk 01:23:35]} {[%emt 00:01:46]} 13. Bg5
{[%clk 01:16:15]} {[%emt 00:07:51]} h6 {[%clk 01:23:13]} {[%emt 00:00:53]} 14.
Bh4 {[%clk 01:15:40]} {[%emt 00:01:05]} Rb8 {[%clk 01:16:32]} {[%emt 00:07:11]}
15. Qe2 {[%clk 01:14:25]} {[%emt 00:01:46]} Bb7 {[%clk 01:14:02]} {[%emt
00:02:59]} 16. Bg3 {[%clk 01:13:46]} {[%emt 00:01:08]} Nd7 {[%clk 01:13:46]}
{[%emt 00:00:47]} 17. f4 {[%clk 01:12:48]} {[%emt 00:01:28]} Bc6 {[%clk
01:13:39]} {[%emt 00:00:38]} 18. b3 {[%clk 01:10:32]} {[%emt 00:02:45]} Bf6
{[%clk 01:13:17]} {[%emt 00:00:51]} 19. e5 {[%clk 01:04:27]} {[%emt 00:06:35]}
Be7 {[%clk 01:10:52]} {[%emt 00:02:55]} 20. exd6 {[%clk 01:03:14]} {[%emt
00:01:43]} Bxd6 {[%clk 01:11:19]} {[%emt 00:00:03]} 21. Ne4 {[%clk 01:03:40]}
{[%emt 00:00:03]} Bxe4 {[%clk 01:09:37]} {[%emt 00:02:13]} 22. Qxe4 {[%clk
01:03:01]} {[%emt 00:01:09]} Nf6 {[%clk 01:09:08]} {[%emt 00:00:59]} 23. Qf3
{[%clk 01:03:02]} {[%emt 00:00:29]} a5 {[%clk 01:04:16]} {[%emt 00:05:23]} 24.
Bc2 {[%clk 01:01:53]} {[%emt 00:01:38]} Rbd8 {[%clk 00:57:37]} {[%emt
00:07:09]} 25. Rcd1 {[%clk 01:01:31]} {[%emt 00:00:52]} Rd7 {[%clk 00:55:01]}
{[%emt 00:03:06]} 26. Rd3 {[%clk 00:59:42]} {[%emt 00:02:20]} Rfd8 {[%clk
00:53:59]} {[%emt 00:01:31]} 27. Rfd1 {[%clk 00:56:11]} {[%emt 00:04:01]} g6
{[%clk 00:51:47]} {[%emt 00:02:42]} 28. Bh4 {[%clk 00:41:27]} {[%emt 00:15:14]}
Be7 {[%clk 00:51:35]} {[%emt 00:00:42]} 29. Rxd7 {[%clk 00:35:16]} {[%emt
00:06:40]} Rxd7 {[%clk 00:51:52]} {[%emt 00:00:14]} 30. Rxd7 {[%clk 00:35:34]}
{[%emt 00:00:12]} Qxd7 {[%clk 00:52:00]} {[%emt 00:00:21]} 31. Qd3 {[%clk
00:36:02]} {[%emt 00:00:03]} 1/2-1/2

[Event "Senior Men Russian Championship 2022_HL"]
[Site "Saint-Petersburg, Russia"]
[Date "2022.10.01"]
[Round "8.1"]
[White "Zhelnin, Vladimir V"]
[Black "Ponfilenok, Vladimir"]
[Result "0-1"]
[TimeControl "40+30"]
[WhiteElo "2344"]
[BlackElo "2298"]

1. e4 {[%clk 01:30:57]} {[%emt 00:00:02]} e6 {[%clk 01:30:56]} {[%emt
00:00:05]} 2. Nc3 {[%clk 01:31:14]} {[%emt 00:00:11]} d5 {[%clk 01:31:20]}
{[%emt 00:00:06]} 3. Nf3 {[%clk 01:31:35]} {[%emt 00:00:09]} d4 {[%clk
01:31:10]} {[%emt 00:00:41]} 4. Ne2 {[%clk 01:31:56]} {[%emt 00:00:09]} c5
{[%clk 01:31:27]} {[%emt 00:00:13]} 5. Ng3 {[%clk 01:31:02]} {[%emt 00:01:23]}
a6 {[%clk 01:29:49]} {[%emt 00:02:08]} 6. d3 {[%clk 01:28:18]} {[%emt
00:03:15]} Nc6 {[%clk 01:29:27]} {[%emt 00:00:52]} 7. Be2 {[%clk 01:24:21]}
{[%emt 00:04:28]} Nf6 {[%clk 01:22:42]} {[%emt 00:07:15]} 8. O-O {[%clk
01:23:16]} {[%emt 00:01:34]} Bd6 {[%clk 01:22:43]} {[%emt 00:00:28]} 9. Nd2
{[%clk 01:20:56]} {[%emt 00:02:51]} Qc7 {[%clk 01:06:05]} {[%emt 00:17:09]} 10.
Nc4 {[%clk 01:17:35]} {[%emt 00:03:51]} Bf4 {[%clk 01:04:43]} {[%emt 00:01:50]}
11. a4 {[%clk 01:09:55]} {[%emt 00:08:11]} e5 {[%clk 01:00:46]} {[%emt
00:04:27]} 12. Nf5 {[%clk 00:52:34]} {[%emt 00:17:51]} Bxf5 {[%clk 00:58:17]}
{[%emt 00:02:59]} 13. exf5 {[%clk 00:52:56]} {[%emt 00:00:08]} O-O {[%clk
00:57:51]} {[%emt 00:00:55]} 14. Bf3 {[%clk 00:51:08]} {[%emt 00:02:15]} b5
{[%clk 00:41:54]} {[%emt 00:16:31]} 15. Nd2 {[%clk 00:30:05]} {[%emt 00:21:32]}
Bxh2+ {[%clk 00:40:48]} {[%emt 00:01:37]} 16. Kxh2 {[%clk 00:30:20]} {[%emt
00:00:15]} e4+ {[%clk 00:41:17]} 17. Kg1 {[%clk 00:30:25]} {[%emt 00:00:25]}
exf3 {[%clk 00:41:45]} {[%emt 00:00:02]} 18. Qxf3 {[%clk 00:30:09]} {[%emt
00:00:46]} Rac8 {[%clk 00:37:21]} {[%emt 00:04:53]} 19. axb5 {[%clk 00:25:10]}
{[%emt 00:05:30]} axb5 {[%clk 00:37:48]} {[%emt 00:00:03]} 20. Nb3 {[%clk
00:18:56]} {[%emt 00:06:44]} c4 {[%clk 00:33:34]} {[%emt 00:04:44]} 21. Bf4
{[%clk 00:19:13]} {[%emt 00:00:13]} Qd7 {[%clk 00:33:17]} {[%emt 00:00:47]} 22.
dxc4 {[%clk 00:17:24]} {[%emt 00:02:20]} bxc4 {[%clk 00:33:44]} {[%emt
00:00:03]} 23. Na5 {[%clk 00:17:09]} {[%emt 00:00:44]} Nb4 {[%clk 00:30:07]}
{[%emt 00:04:07]} 24. Rfc1 {[%clk 00:09:09]} {[%emt 00:08:30]} Rfe8 {[%clk
00:26:05]} {[%emt 00:04:31]} 25. Bd2 {[%clk 00:06:40]} {[%emt 00:02:59]} Nbd5
{[%clk 00:25:07]} {[%emt 00:01:28]} 26. Bg5 {[%clk 00:03:56]} {[%emt 00:03:14]}
Re5 {[%clk 00:23:13]} {[%emt 00:02:22]} 27. Bxf6 {[%clk 00:04:03]} {[%emt
00:00:24]} Nxf6 {[%clk 00:23:21]} {[%emt 00:00:22]} 28. Rd1 {[%clk 00:03:01]}
{[%emt 00:01:33]} Rxf5 {[%clk 00:22:12]} {[%emt 00:01:39]} 29. Qb7 {[%clk
00:01:11]} {[%emt 00:02:21]} Qxb7 {[%clk 00:17:25]} {[%emt 00:05:16]} 30. Nxb7
{[%clk 00:01:40]} {[%emt 00:00:02]} Rd5 {[%clk 00:17:45]} {[%emt 00:00:07]} 31.
Ra5 {[%clk 00:01:27]} {[%emt 00:00:45]} Rd7 {[%emt 00:08:42]} 32. Nc5 {[%emt
00:00:02]} Rd6 {[%clk 00:08:39]} {[%emt 00:01:20]} 33. b3 {[%clk 00:01:15]}
{[%emt 00:01:14]} Rd5 {[%clk 00:07:25]} {[%emt 00:01:42]} 34. Nb7 {[%clk
00:01:02]} {[%emt 00:00:44]} d3 {[%clk 00:05:46]} {[%emt 00:02:10]} 35. Rxd5
{[%clk 00:00:52]} {[%emt 00:00:40]} Nxd5 {[%clk 00:06:14]} {[%emt 00:00:02]} 36.
cxd3 {[%clk 00:00:53]} {[%emt 00:00:30]} Nc3 {[%clk 00:03:55]} {[%emt
00:02:47]} 37. Rd2 {[%clk 00:00:49]} {[%emt 00:00:33]} cxb3 {[%clk 00:01:52]}
{[%emt 00:02:35]} 38. Na5 {[%clk 00:01:04]} {[%emt 00:00:15]} Rb8 {[%clk
00:01:52]} {[%emt 00:00:30]} 39. Rb2 {[%clk 00:01:18]} {[%emt 00:00:13]} Ne2+
{[%clk 00:02:11]} {[%emt 00:00:13]} 40. Kf1 {[%clk 00:30:54]} {[%emt 00:00:54]}
Nd4 {[%clk 00:32:32]} {[%emt 00:00:09]} 41. Ke1 {[%clk 00:29:28]} {[%emt
00:01:57]} Ra8 {[%clk 00:29:27]} {[%emt 00:03:35]} 42. Nc4 {[%clk 00:29:47]}
{[%emt 00:00:10]} Ra2 {[%clk 00:28:58]} {[%emt 00:00:58]} 43. Kd2 {[%clk
00:28:48]} {[%emt 00:01:29]} Rxb2+ {[%clk 00:28:52]} {[%emt 00:00:38]} 44. Nxb2
{[%clk 00:29:16]} {[%emt 00:00:01]} Nb5 {[%clk 00:29:13]} {[%emt 00:00:09]} 45.
Na4 {[%clk 00:26:45]} {[%emt 00:03:03]} h5 {[%clk 00:26:38]} {[%emt 00:03:04]}
46. Kc1 {[%clk 00:21:14]} {[%emt 00:06:00]} h4 {[%clk 00:26:07]} {[%emt
00:01:01]} 47. Kb2 {[%clk 00:21:14]} {[%emt 00:00:31]} Nd4 {[%clk 00:26:24]}
{[%emt 00:00:10]} 48. Nc5 {[%clk 00:21:09]} {[%emt 00:00:37]} f5 {[%clk
00:23:46]} {[%emt 00:03:08]} 49. f4 {[%clk 00:16:19]} {[%emt 00:05:20]} Kf7
{[%clk 00:22:06]} {[%emt 00:02:09]} 50. Nd7 {[%emt 00:01:28]} Ne2 {[%clk
00:19:41]} {[%emt 00:02:08]} 51. Ne5+ {[%clk 00:16:08]} {[%emt 00:00:32]} Kf6
{[%clk 00:19:57]} {[%emt 00:00:12]} 52. Nf3 {[%clk 00:16:29]} {[%emt 00:00:10]}
Nxf4 {[%clk 00:20:16]} {[%emt 00:00:11]} 53. Nxh4 {[%clk 00:16:50]} {[%emt
00:00:09]} Nxd3+ {[%clk 00:19:55]} {[%emt 00:00:51]} 54. Kxb3 {[%clk 00:17:09]}
{[%emt 00:00:11]} Ne1 {[%clk 00:20:16]} {[%emt 00:00:08]} 55. Kc3 {[%clk
00:16:51]} {[%emt 00:00:48]} Kg5 {[%clk 00:20:38]} {[%emt 00:00:08]} 56. g3
{[%clk 00:16:19]} {[%emt 00:01:03]} f4 {[%clk 00:21:01]} {[%emt 00:00:06]} 57.
Kd4 {[%emt 00:00:54]} 0-1

[Event "Senior Men Russian Championship 2022_HL"]
[Site "Saint-Petersburg, Russia"]
[Date "2022.10.01"]
[Round "8.2"]
[White "Balashov, Yuri S"]
[Black "Provotorov, Alexandr P."]
[Result "1-0"]
[TimeControl "40+30"]
[WhiteElo "2395"]
[BlackElo "2277"]

1. e4 {[%clk 01:30:56]} {[%emt 00:00:03]} e5 {[%clk 01:28:08]} {[%emt
00:02:53]} 2. Nf3 {[%clk 01:31:17]} {[%emt 00:00:08]} Nc6 {[%clk 01:28:33]}
{[%emt 00:00:06]} 3. Bb5 {[%emt 00:00:11]} a6 {[%clk 01:27:09]} {[%emt
00:01:52]} 4. Ba4 {[%clk 01:32:00]} {[%emt 00:00:08]} Nf6 {[%clk 01:26:37]}
{[%emt 00:01:01]} 5. O-O {[%clk 01:32:18]} {[%emt 00:00:11]} b5 {[%clk
01:25:51]} {[%emt 00:01:17]} 6. Bb3 {[%clk 01:32:43]} {[%emt 00:00:06]} Bb7
{[%clk 01:26:17]} {[%emt 00:00:04]} 7. Nc3 {[%clk 01:32:17]} {[%emt 00:00:56]}
Be7 {[%clk 01:25:53]} {[%emt 00:00:53]} 8. d3 {[%clk 01:32:35]} {[%emt
00:00:12]} O-O {[%clk 01:24:47]} {[%emt 00:01:36]} 9. a3 {[%clk 01:29:10]}
{[%emt 00:03:55]} d6 {[%clk 01:20:06]} {[%emt 00:05:10]} 10. h3 {[%clk
01:25:26]} {[%emt 00:04:15]} Na5 {[%clk 01:12:05]} {[%emt 00:08:31]} 11. Ba2
{[%clk 01:25:43]} {[%emt 00:00:13]} c5 {[%clk 01:12:27]} {[%emt 00:00:07]} 12.
b4 {[%clk 01:20:45]} {[%emt 00:05:28]} Nc6 {[%clk 01:10:11]} {[%emt 00:02:47]}
13. Nd5 {[%clk 01:20:31]} {[%emt 00:00:45]} Rc8 {[%clk 00:52:09]} {[%emt
00:18:32]} 14. c3 {[%clk 01:13:06]} {[%emt 00:07:54]} Nxd5 {[%clk 00:45:14]}
{[%emt 00:07:24]} 15. Bxd5 {[%clk 01:13:25]} {[%emt 00:00:12]} Qc7 {[%clk
00:44:24]} {[%emt 00:01:20]} 16. Be3 {[%clk 01:06:51]} {[%emt 00:07:04]} Nd8
{[%clk 00:42:17]} {[%emt 00:02:38]} 17. Bxb7 {[%clk 01:05:35]} {[%emt
00:01:45]} Nxb7 {[%clk 00:42:23]} {[%emt 00:00:24]} 18. a4 {[%clk 01:02:37]}
{[%emt 00:03:28]} Ra8 {[%clk 00:38:36]} {[%emt 00:04:17]} 19. Qb1 {[%clk
00:57:33]} {[%emt 00:05:33]} cxb4 {[%clk 00:36:12]} {[%emt 00:02:55]} 20. cxb4
{[%clk 00:57:56]} {[%emt 00:00:07]} Qd7 {[%clk 00:36:31]} {[%emt 00:00:10]} 21.
Qb3 {[%clk 00:52:21]} {[%emt 00:06:06]} a5 {[%clk 00:25:10]} {[%emt 00:11:51]}
22. Qd5 {[%clk 00:51:55]} {[%emt 00:00:56]} bxa4 {[%clk 00:24:55]} {[%emt
00:00:45]} 23. b5 {[%clk 00:49:03]} {[%emt 00:03:22]} Qc7 {[%clk 00:19:26]}
{[%emt 00:05:59]} 24. b6 {[%clk 00:45:04]} {[%emt 00:04:29]} Qb8 {[%clk
00:19:49]} {[%emt 00:00:07]} 25. Rfc1 {[%clk 00:44:05]} {[%emt 00:01:29]} Nc5
{[%clk 00:10:23]} {[%emt 00:09:56]} 26. Bxc5 {[%clk 00:42:49]} {[%emt
00:01:46]} dxc5 {[%clk 00:10:47]} {[%emt 00:00:06]} 27. Nxe5 {[%clk 00:42:28]}
{[%emt 00:00:50]} 1-0

[Event "Senior Men Russian Championship 2022_HL"]
[Site "Saint-Petersburg, Russia"]
[Date "2022.10.01"]
[Round "8.3"]
[White "Ionov, Sergey"]
[Black "Kozlov, Oleg"]
[Result "1/2-1/2"]
[TimeControl "40+30"]
[WhiteElo "2513"]
[BlackElo "2279"]

1. e4 {[%clk 01:30:51]} {[%emt 00:00:09]} c5 {[%clk 01:30:57]} {[%emt
00:00:04]} 2. Nf3 {[%clk 01:31:14]} {[%emt 00:00:06]} e6 {[%clk 01:31:05]}
{[%emt 00:00:23]} 3. g3 {[%clk 01:31:21]} {[%emt 00:00:23]} Nc6 {[%clk
01:07:08]} {[%emt 00:24:27]} 4. Bg2 {[%clk 01:30:59]} {[%emt 00:00:51]} Nf6
{[%clk 01:07:32]} {[%emt 00:00:07]} 5. d3 {[%clk 01:30:16]} {[%emt 00:01:13]}
d5 {[%clk 01:07:41]} {[%emt 00:00:21]} 6. Qe2 {[%clk 01:30:38]} {[%emt
00:00:06]} Be7 {[%clk 01:00:30]} {[%emt 00:07:42]} 7. e5 {[%clk 01:30:16]}
{[%emt 00:00:53]} Nd7 {[%clk 01:00:54]} {[%emt 00:00:05]} 8. c4 {[%clk
01:30:40]} {[%emt 00:00:06]} dxc4 {[%clk 00:53:06]} {[%emt 00:08:18]} 9. dxc4
{[%clk 01:31:04]} {[%emt 00:00:06]} Qc7 {[%clk 00:33:44]} {[%emt 00:19:53]} 10.
Bf4 {[%clk 01:15:47]} {[%emt 00:15:46]} Nd4 {[%clk 00:33:34]} {[%emt 00:00:39]}
11. Nxd4 {[%clk 01:13:17]} {[%emt 00:03:01]} cxd4 {[%clk 00:34:02]} {[%emt
00:00:02]} 12. h4 {[%clk 00:59:40]} {[%emt 00:14:06]} Nc5 {[%clk 00:29:12]}
{[%emt 00:05:21]} 13. Nd2 {[%clk 00:57:19]} {[%emt 00:02:50]} Bd7 {[%clk
00:28:30]} {[%emt 00:01:13]} 14. O-O {[%clk 00:52:40]} {[%emt 00:05:09]} Bc6
{[%clk 00:24:37]} {[%emt 00:04:22]} 15. Bxc6+ {[%clk 00:34:52]} {[%emt
00:18:19]} Qxc6 {[%clk 00:24:50]} {[%emt 00:00:17]} 16. b4 {[%clk 00:31:24]}
{[%emt 00:03:58]} Na4 {[%clk 00:25:03]} {[%emt 00:00:18]} 17. a3 {[%clk
00:31:24]} {[%emt 00:00:29]} O-O {[%clk 00:24:26]} {[%emt 00:01:07]} 18. Ne4
{[%clk 00:24:00]} {[%emt 00:07:54]} Rfd8 {[%clk 00:22:01]} {[%emt 00:02:55]} 19.
Rac1 {[%clk 00:23:59]} {[%emt 00:00:31]} a5 {[%clk 00:14:11]} {[%emt 00:08:20]}
20. c5 {[%clk 00:22:16]} {[%emt 00:02:12]} axb4 {[%clk 00:14:16]} {[%emt
00:00:27]} 21. axb4 {[%clk 00:22:45]} Qd5 {[%emt 00:02:39]} 1/2-1/2

[Event "Senior Men Russian Championship 2022_HL"]
[Site "Saint-Petersburg, Russia"]
[Date "2022.10.01"]
[Round "8.4"]
[White "Loginov, Valery A"]
[Black "Kalegin, Evgenij"]
[Result "1/2-1/2"]
[TimeControl "40+30"]
[WhiteElo "2478"]
[BlackElo "2386"]

1. e4 {[%clk 01:30:54]} {[%emt 00:00:06]} c5 {[%clk 01:30:48]} {[%emt
00:00:12]} 2. Nf3 {[%clk 01:31:15]} {[%emt 00:00:08]} e6 {[%clk 01:31:09]}
{[%emt 00:00:10]} 3. d4 {[%clk 01:31:39]} {[%emt 00:00:07]} cxd4 {[%clk
01:31:29]} {[%emt 00:00:10]} 4. Nxd4 {[%clk 01:32:03]} {[%emt 00:00:06]} a6
{[%clk 01:29:04]} {[%emt 00:02:55]} 5. Nc3 {[%clk 01:31:09]} {[%emt 00:01:23]}
b5 {[%clk 01:28:27]} {[%emt 00:01:07]} 6. Be2 {[%clk 01:31:32]} {[%emt
00:00:07]} Bb7 {[%clk 01:27:24]} {[%emt 00:01:34]} 7. O-O {[%clk 01:31:54]}
{[%emt 00:00:08]} Nc6 {[%clk 01:17:50]} {[%emt 00:10:04]} 8. Nxc6 {[%clk
01:22:35]} {[%emt 00:09:49]} Bxc6 {[%clk 01:17:52]} {[%emt 00:00:28]} 9. Re1
{[%clk 01:16:15]} {[%emt 00:06:49]} Bc5 {[%clk 01:15:53]} {[%emt 00:02:29]} 10.
Bd3 {[%clk 01:05:41]} {[%emt 00:11:05]} d6 {[%clk 01:11:19]} {[%emt 00:05:04]}
11. Be3 {[%clk 01:02:57]} {[%emt 00:03:13]} Bxe3 {[%clk 01:10:12]} {[%emt
00:01:38]} 12. Rxe3 {[%clk 01:03:21]} {[%emt 00:00:04]} Nf6 {[%clk 01:10:33]}
{[%emt 00:00:10]} 13. a3 {[%clk 00:49:40]} {[%emt 00:14:12]} O-O {[%clk
01:07:52]} {[%emt 00:03:10]} 14. Rh3 {[%clk 00:49:16]} {[%emt 00:00:54]} e5
{[%clk 01:05:02]} {[%emt 00:03:21]} 15. Qe2 {[%clk 00:48:39]} {[%emt 00:01:07]}
g6 {[%clk 01:03:12]} {[%emt 00:02:19]} 16. Rd1 {[%clk 00:47:56]} {[%emt
00:01:13]} Bd7 {[%clk 00:57:02]} {[%emt 00:06:40]} 17. Rg3 {[%clk 00:48:00]}
{[%emt 00:00:26]} Kh8 {[%clk 00:44:10]} {[%emt 00:13:22]} 1/2-1/2

[Event "Senior Men Russian Championship 2022_HL"]
[Site "Saint-Petersburg, Russia"]
[Date "2022.10.01"]
[Round "8.5"]
[White "Pozin, Sergey"]
[Black "Lisenko, Alexander V"]
[Result "1/2-1/2"]
[TimeControl "40+30"]
[WhiteElo "2257"]
[BlackElo "2307"]

1. d4 {[%clk 01:30:57]} {[%emt 00:00:03]} Nf6 {[%clk 01:30:45]} {[%emt
00:00:14]} 2. Nf3 {[%clk 01:31:09]} {[%emt 00:00:18]} e6 {[%clk 01:30:25]}
{[%emt 00:00:50]} 3. c4 {[%clk 01:31:16]} {[%emt 00:00:23]} b6 {[%clk
01:25:49]} {[%emt 00:05:06]} 4. g3 {[%clk 01:31:00]} {[%emt 00:00:46]} Bb7
{[%clk 01:26:00]} {[%emt 00:00:20]} 5. Bg2 {[%clk 01:31:21]} {[%emt 00:00:09]}
Bb4+ {[%clk 01:19:51]} {[%emt 00:06:38]} 6. Nbd2 {[%clk 01:30:48]} {[%emt
00:01:04]} Ne4 {[%clk 01:11:32]} {[%emt 00:08:48]} 7. O-O {[%clk 01:31:00]}
{[%emt 00:00:18]} Nxd2 {[%clk 01:11:39]} {[%emt 00:00:23]} 8. Bxd2 {[%clk
01:31:22]} {[%emt 00:00:08]} Bxd2 {[%clk 01:12:06]} {[%emt 00:00:03]} 9. Qxd2
{[%clk 01:30:45]} {[%emt 00:01:08]} d5 {[%clk 01:07:44]} {[%emt 00:04:52]} 10.
Rac1 {[%clk 01:16:54]} {[%emt 00:14:20]} O-O {[%clk 00:53:48]} {[%emt
00:14:26]} 11. cxd5 {[%clk 01:12:36]} {[%emt 00:04:49]} exd5 {[%clk 00:44:24]}
{[%emt 00:09:53]} 12. Ne5 {[%clk 00:58:42]} {[%emt 00:14:24]} Qd6 {[%clk
00:38:02]} {[%emt 00:06:51]} 13. Qf4 {[%clk 00:57:57]} {[%emt 00:01:16]} Na6
{[%clk 00:24:57]} {[%emt 00:13:35]} 14. Nc6 {[%clk 00:52:29]} {[%emt 00:05:59]}
Qxf4 {[%clk 00:17:02]} {[%emt 00:08:25]} 15. gxf4 {[%clk 00:52:32]} {[%emt
00:00:27]} Bxc6 {[%clk 00:16:09]} {[%emt 00:01:22]} 16. Rxc6 {[%clk 00:52:51]}
{[%emt 00:00:11]} Rad8 {[%clk 00:16:35]} {[%emt 00:00:03]} 17. b4 {[%clk
00:43:41]} {[%emt 00:09:41]} Nxb4 {[%clk 00:14:36]} {[%emt 00:02:29]} 18. Rxc7
{[%clk 00:43:11]} {[%emt 00:01:00]} Rc8 {[%clk 00:12:03]} {[%emt 00:03:03]} 19.
Rxc8 {[%clk 00:38:24]} {[%emt 00:05:17]} Rxc8 {[%clk 00:12:16]} {[%emt
00:00:17]} 20. a3 {[%clk 00:38:45]} {[%emt 00:00:08]} Na2 {[%clk 00:11:30]}
{[%emt 00:01:16]} 21. Bxd5 {[%clk 00:37:37]} {[%emt 00:01:39]} Nc3 {[%clk
00:11:49]} {[%emt 00:00:12]} 22. Bf3 {[%clk 00:37:28]} {[%emt 00:00:38]} Nb5
{[%clk 00:11:58]} {[%emt 00:00:22]} 23. d5 {[%clk 00:20:37]} {[%emt 00:17:20]}
Nxa3 {[%clk 00:12:01]} {[%emt 00:00:27]} 24. Ra1 {[%clk 00:16:58]} {[%emt
00:04:09]} Rc3 {[%clk 00:11:03]} {[%emt 00:01:29]} 25. d6 {[%clk 00:16:29]}
{[%emt 00:00:58]} Kf8 {[%emt 00:05:11]} 1/2-1/2